lending/lending_fUSD_20250122
["ID","MTS","AMOUNT","RATE_DAILY","PERIOD"]
[350013586,1737565845141,-690.65,0.00019999,2]
[350013587,1737565845152,-1138.91,0.00019999,2]
[350013588,1737565845163,-690.29,0.00019999,2]
[350013589,1737565845176,-605.71,0.00019999,2]
[350013590,1737565845187,-500.0,0.00019999,2]
[350013591,1737565845198,-1917.71,0.00019999,2]
[350013592,1737565845208,-668.31,0.00019999,2]
[350013593,1737565845218,-752.83,0.00019999,2]
[350013594,1737565845229,-1417.61,0.00019999,2]
[350013595,1737565845239,-500.0,0.00019999,2]
[350013596,1737565845253,-538.97,0.00019999,2]
[350013597,1737565845263,-1068.08,0.00019999,2]
[350013598,1737565845273,-500.0,0.00019999,2]
[350013599,1737565845283,-701.25,0.00019999,2]
[350013600,1737565845295,-500.0,0.00019999,2]
[350013601,1737565845308,-839.47,0.00019999,2]
[350013602,1737565845319,-796.59,0.00019999,2]
[350013603,1737565845331,-704.85,0.00019999,2]
[350013604,1737565845341,-500.0,0.00019999,2]
[350013605,1737565845351,-888.25,0.00019999,2]
[350013606,1737565845362,-452.36,0.00019999,2]
[350013607,1737565845373,-287.33119853,0.00019999,2]
[350013608,1737565845384,-500.0,0.00019999,2]
[350013609,1737565845395,-2198.06,0.00019999,2]
[350013610,1737565845405,-500.0,0.00019999,2]
[350013611,1737565845416,-500.0,0.00019999,2]
[350013612,1737565845426,-500.0,0.00019999,2]
[350013613,1737565845436,-911.33,0.00019999,2]
[350013614,1737565845447,-1000.0,0.00019999,2]
[350013615,1737565845457,-871.28,0.00019999,2]
[350013616,1737565845466,-621.29,0.00019999,2]
[350013617,1737565845475,-500.0,0.00019999,2]
[350013618,1737565845485,-500.0,0.00019999,2]
[350013619,1737565845494,-525.11,0.00019999,2]
[350013620,1737565845504,-500.0,0.00019999,2]
[350013621,1737565845513,-936.18,0.00019999,2]
[350013622,1737565845523,-1361.84,0.00019999,2]
[350013623,1737565845532,-238.78331631,0.00019999,2]
[350013625,1737565845543,-1757.48,0.00019999,2]
[350013627,1737565845552,-500.0,0.00019999,2]
[350013628,1737565845561,-1059.37,0.00019999,2]
[350013629,1737565845570,-500.0,0.00019999,2]
[350013630,1737565845580,-500.0,0.00019999,2]
[350013631,1737565845589,-788.3,0.00019999,2]
[350013632,1737565845599,-402.74054309,0.0002,2]
[350013633,1737565845607,-500.0,0.0002,2]
[350013634,1737565845617,-500.0,0.0002,2]
[350013635,1737565845626,-500.0,0.0002,2]
[350013636,1737565845635,-500.0,0.0002,2]
[350013637,1737565845645,-500.0,0.0002,2]
[350013638,1737565845655,-500.0,0.0002,2]
[350013639,1737565845664,-350.20329588,0.0002,2]
[350013640,1737565845673,-500.0,0.0002,2]
[350013641,1737565845683,-519.16228559,0.0002,2]
[350013642,1737565845692,-500.0,0.0002,2]
[350013643,1737565845701,-500.0,0.0002,2]
[350013644,1737565845711,-500.0,0.0002,2]
[350013645,1737565845721,-649.07,0.0002,2]
[350013646,1737565845730,-500.0,0.0002,2]
[350013647,1737565845739,-500.0,0.0002,2]
[350013648,1737565845749,-646.03,0.0002,2]
[350013649,1737565845759,-500.0,0.0002,2]
[350013650,1737565845768,-500.0,0.0002,2]
[350013651,1737565845777,-501.78,0.0002,2]
[350013652,1737565845786,-614.23,0.0002,2]
[350013653,1737565845797,-500.0,0.0002,2]
[350013654,1737565845807,-500.0,0.0002,2]
[350013655,1737565845816,-609.90763597,0.0002,2]
[350013656,1737565845825,-500.0,0.0002,2]
[350013657,1737565845834,-500.0,0.0002,2]
[350013658,1737565845844,-500.0,0.0002,2]
[350013659,1737565845853,-500.0,0.0002,2]
[350013660,1737565845863,-563.17,0.0002,2]
[350013661,1737565845872,-500.0,0.0002,2]
[350013662,1737565845880,-970.84,0.0002,2]
[350013663,1737565845889,-500.0,0.0002,2]
[350013664,1737565845898,-833.14,0.0002,2]
[350013665,1737565845907,-701.87,0.0002,2]
[350013666,1737565845915,-591.98413571,0.0002,2]
[350013667,1737565845924,-500.0,0.0002,2]
[350013668,1737565845933,-633.32,0.0002,2]
[350013669,1737565845943,-500.0,0.0002,2]
[350013670,1737565845952,-598.7,0.0002,2]
[350013671,1737565845962,-500.0,0.0002,2]
[350013672,1737565845972,-451.90785432,0.00020038,2]
[350013673,1737565845982,-451.90785432,0.00020107,2]
[350013674,1737565845991,-1000.0,0.00020169,2]
[350013675,1737565846001,-476.8220506,0.00020173,2]
[350013676,1737565846011,-451.90785432,0.00020176,2]
[350013677,1737565846021,-179.76,0.00020214,2]
[350013678,1737565846030,-451.90785432,0.00020245,2]
[350013679,1737565846040,-2046.91,0.00020272,2]
[350013680,1737565846052,-618.01,0.00020272,2]
[350013681,1737565846062,-656.98,0.00020272,2]
[350013682,1737565846073,-500.0,0.00020272,2]
[350013683,1737565846082,-657.244566,0.00020272,2]
[350013684,1737565846091,-500.0,0.00020272,2]
[350013685,1737565846102,-500.0,0.00020272,2]
[350013686,1737565846112,-907.71,0.00020272,2]
[350013687,1737565846121,-500.0,0.00020272,2]
[350013688,1737565846130,-460.310681,0.00020272,2]
[350013689,1737565846140,-1063.42,0.00020272,2]
[350013690,1737565846149,-941.71,0.00020272,2]
[350013691,1737565846159,-965.73,0.00020272,2]
[350013692,1737565846168,-1797.28,0.00020272,2]
[350013693,1737565846177,-643.03,0.00020272,2]
[350013694,1737565846187,-974.46,0.00020272,2]
[350013695,1737565846197,-724.33,0.00020272,2]
[350013696,1737565846206,-694.48,0.00020272,2]
[350013697,1737565846215,-673.61,0.00020272,2]
[350013698,1737565846224,-776.58,0.00020272,2]
[350013699,1737565846233,-672.49,0.00020272,2]
[350013700,1737565846243,-500.0,0.00020272,2]
[350013701,1737565846255,-501.16,0.00020272,2]
[350013702,1737565846265,-500.0,0.00020272,2]
[350013703,1737565846274,-500.0,0.00020272,2]
[350013704,1737565846283,-625.11,0.00020272,2]
[350013705,1737565846295,-1105.81,0.00020272,2]
[350013706,1737565846305,-1336.34,0.00020272,2]
[350013707,1737565846315,-726.5,0.00020272,2]
[350013708,1737565846328,-935.45,0.00020272,2]
[350013709,1737565846338,-966.49,0.00020272,2]
[350013710,1737565846348,-1581.88,0.00020272,2]
[350013711,1737565846358,-788.97,0.00020272,2]
[350013712,1737565846368,-1825.75,0.00020272,2]
[350013713,1737565846378,-636.92,0.00020272,2]
[350013714,1737565846388,-500.0,0.00020272,2]
[350013715,1737565846397,-681.56,0.00020272,2]
[350013716,1737565846407,-1012.12,0.00020272,2]
[350013717,1737565846416,-666.62,0.00020272,2]
[350013718,1737565846427,-847.19,0.00020272,2]
[350013719,1737565846437,-699.41,0.00020272,2]
[350013720,1737565846447,-626.69,0.00020272,2]
[350013721,1737565846456,-2254.05,0.00020272,2]
[350013722,1737565846465,-500.0,0.00020272,2]
[350013723,1737565846475,-1106.94,0.00020272,2]
[350013724,1737565846483,-1650.73,0.00020272,2]
[350013725,1737565846492,-500.0,0.00020272,2]
[350013726,1737565846501,-1074.08,0.00020272,2]
[350013727,1737565846510,-743.43,0.00020272,2]
[350013728,1737565846519,-500.0,0.00020272,2]
[350013729,1737565846529,-500.0,0.00020272,2]
[350013730,1737565846538,-500.0,0.00020273,2]
[350013731,1737565846550,-500.0,0.00020273,2]
[350013732,1737565846559,-500.0,0.00020273,2]
[350013733,1737565846568,-500.0,0.00020273,2]
[350013734,1737565846581,-500.0,0.00020273,2]
[350013735,1737565846590,-500.0,0.00020273,2]
[350013736,1737565846599,-500.0,0.00020273,2]
[350013737,1737565846609,-500.0,0.00020273,2]
[350013738,1737565846619,-500.0,0.00020273,2]
[350013739,1737565846629,-500.0,0.00020273,2]
[350013740,1737565846638,-509.66,0.00020273,2]
[350013741,1737565846648,-500.0,0.00020273,2]
[350013742,1737565846657,-545.74,0.00020273,2]
[350013743,1737565846667,-500.0,0.00020273,2]
[350013744,1737565846676,-500.0,0.00020273,2]
[350013745,1737565846685,-500.0,0.00020273,2]
[350013746,1737565846694,-500.0,0.00020273,2]
[350013747,1737565846704,-500.0,0.00020273,2]
[350013748,1737565846713,-500.0,0.00020273,2]
[350013749,1737565846724,-649.07,0.00020273,2]
[350013750,1737565846889,-525.43,0.00020273,2]
[350013751,1737565846899,-500.0,0.00020273,2]
[350013752,1737565846908,-505.79,0.00020273,2]
[350013753,1737565846918,-500.0,0.00020273,2]
[350013754,1737565846927,-646.03,0.00020273,2]
[350013755,1737565846936,-500.0,0.00020273,2]
[350013756,1737565846945,-500.0,0.00020273,2]
[350013757,1737565846954,-500.0,0.00020273,2]
[350013758,1737565846963,-500.0,0.00020273,2]
[350013759,1737565846973,-501.78,0.00020273,2]
[350013760,1737565846983,-500.0,0.00020273,2]
[350013761,1737565846992,-274.78068269,0.00020273,2]
[350013762,1737565847002,-500.0,0.00020273,2]
[350013763,1737565847012,-614.23,0.00020273,2]
[350013764,1737565847023,-623.51,0.00020273,2]
[350013765,1737565847032,-546.02,0.00020273,2]
[350013766,1737565847041,-500.0,0.00020273,2]
[350013767,1737565847053,-504.84,0.00020273,2]
[350013768,1737565847062,-500.0,0.00020273,2]
[350013769,1737565847072,-500.0,0.00020273,2]
[350013770,1737565847081,-664.44,0.00020273,2]
[350013771,1737565847091,-500.0,0.00020273,2]
[350013772,1737565847100,-500.0,0.00020273,2]
[350013773,1737565847110,-500.0,0.00020273,2]
[350013774,1737565847119,-500.0,0.00020273,2]
[350013775,1737565847129,-645.5,0.00020273,2]
[350013776,1737565847138,-500.0,0.00020273,2]
[350013777,1737565847147,-500.0,0.00020273,2]
[350013778,1737565847158,-500.0,0.00020273,2]
[350013779,1737565847167,-593.07,0.00020273,2]
[350013780,1737565847178,-500.0,0.00020273,2]
[350013781,1737565847187,-500.0,0.00020273,2]
[350013782,1737565847196,-1003.48,0.00020273,2]
[350013783,1737565847206,-617.32,0.00020273,2]
[350013784,1737565847216,-500.0,0.00020273,2]
[350013785,1737565847226,-500.0,0.00020273,2]
[350013786,1737565847235,-500.0,0.00020273,2]
[350013787,1737565847247,-540.86,0.00020273,2]
[350013788,1737565847257,-231.62040296,0.00020273,2]
[350013789,1737565847266,-563.17,0.00020273,2]
[350013790,1737565847276,-228.92130223,0.00020273,2]
[350013791,1737565847286,-1287.13,0.00020273,2]
[350013792,1737565847298,-573.95,0.00020273,2]
[350013793,1737565847307,-500.0,0.00020273,2]
[350013794,1737565847316,-500.0,0.00020273,2]
[350013795,1737565847328,-500.0,0.00020273,2]
[350013796,1737565847337,-670.74,0.00020273,2]
[350013797,1737565847347,-500.0,0.00020273,2]
[350013798,1737565847356,-864.36,0.00020273,2]
[350013799,1737565847366,-500.0,0.00020273,2]
[350013800,1737565847375,-869.3,0.00020273,2]
[350013801,1737565847385,-955.3,0.00020273,2]
[350013802,1737565847396,-970.84,0.00020273,2]
[350013803,1737565847406,-500.0,0.00020273,2]
[350013804,1737565847416,-1182.22,0.00020273,2]
[350013805,1737565847425,-500.0,0.00020273,2]
[350013806,1737565847435,-869.54,0.00020273,2]
[350013807,1737565847444,-500.0,0.00020273,2]
[350013808,1737565847454,-780.63,0.00020273,2]
[350013809,1737565847463,-653.23,0.00020273,2]
[350013810,1737565847472,-1803.15,0.00020273,2]
[350013811,1737565847481,-833.14,0.00020273,2]
[350013812,1737565847490,-573.29,0.00020273,2]
[350013813,1737565847499,-1171.15,0.00020273,2]
[350013814,1737565847509,-579.15,0.00020273,2]
[350013815,1737565847518,-3742.26,0.00020273,2]
[350013816,1737565847527,-690.65,0.00020273,2]
[350013817,1737565847536,-701.87,0.00020273,2]
[350013818,1737565847548,-1138.91,0.00020273,2]
[350013819,1737565847557,-690.29,0.00020273,2]
[350013820,1737565847566,-500.0,0.00020273,2]
[350013821,1737565847575,-605.71,0.00020273,2]
[350013822,1737565847585,-500.0,0.00020273,2]
[350013823,1737565847594,-1917.71,0.00020273,2]
[350013824,1737565847603,-668.31,0.00020273,2]
[350013825,1737565847612,-633.32,0.00020273,2]
[350013826,1737565847621,-752.83,0.00020273,2]
[350013827,1737565847631,-1417.61,0.00020273,2]
[350013828,1737565847640,-500.0,0.00020273,2]
[350013829,1737565847649,-538.97,0.00020273,2]
[350013830,1737565847658,-1068.08,0.00020273,2]
[350013831,1737565847667,-500.0,0.00020273,2]
[350013832,1737565847678,-500.0,0.00020273,2]
[350013833,1737565847688,-701.25,0.00020273,2]
[350013834,1737565847698,-500.0,0.00020273,2]
[350013835,1737565847708,-598.7,0.00020273,2]
[350013836,1737565847718,-839.47,0.00020273,2]
[350013837,1737565847727,-796.59,0.00020273,2]
[350013838,1737565847738,-704.85,0.00020273,2]
[350013839,1737565847747,-500.0,0.00020273,2]
[350013840,1737565847756,-500.0,0.00020273,2]
[350013841,1737565847766,-888.25,0.00020273,2]
[350013842,1737565847775,-500.0,0.00020273,2]
[350013843,1737565847785,-2198.06,0.00020273,2]
[350013844,1737565847797,-500.0,0.00020273,2]
[350013845,1737565847807,-500.0,0.00020273,2]
[350013846,1737565847817,-500.0,0.00020273,2]
[350013847,1737565847827,-911.33,0.00020273,2]
[350013848,1737565847836,-1000.0,0.00020273,2]
[350013849,1737565847846,-871.28,0.00020273,2]
[350013850,1737565847856,-621.29,0.00020273,2]
[350013851,1737565847865,-500.0,0.00020273,2]
[350013852,1737565847875,-500.0,0.00020273,2]
[350013853,1737565847884,-525.11,0.00020273,2]
[350013854,1737565847894,-500.0,0.00020273,2]
[350013855,1737565847905,-936.18,0.00020273,2]
[350013856,1737565847916,-1361.84,0.00020273,2]
[350013857,1737565847925,-1757.48,0.00020273,2]
[350013858,1737565847935,-500.0,0.00020273,2]
[350013859,1737565847944,-1059.37,0.00020273,2]
[350013860,1737565847954,-274.22753248,0.00020273,2]
[350013861,1737565847963,-500.0,0.00020273,2]
[350013862,1737565847972,-788.3,0.00020273,2]
[350013863,1737565847981,-451.90785432,0.00020314,2]
[350013864,1737565847991,-451.90785432,0.00020383,2]
[350013865,1737565848001,-906.0,0.00020402,2]
[350013866,1737565848010,-3984.0,0.00020402,2]
[350013867,1737565848020,-538.0,0.00020402,2]
[350013868,1737565848030,-150.0,0.00020402,2]
[350013869,1737565848040,-3903.0,0.00020402,2]
[350013870,1737565848053,-1176.0,0.00020402,2]
[350013871,1737565848063,-1106.0,0.00020402,2]
[350013872,1737565848073,-446.111,0.00020447,2]
[350013873,1737565848083,-1000.0,0.00020447,2]
[350013874,1737565848092,-451.90785432,0.00020452,2]
[350013875,1737565848102,-2288.0,0.000205,2]
[350013876,1737565848111,-451.90785432,0.00020521,2]
[350013877,1737565848121,-2046.91,0.00020546,2]
[350013878,1737565848130,-618.01,0.00020546,2]
[350013879,1737565848140,-656.98,0.00020546,2]
[350013880,1737565848149,-500.0,0.00020546,2]
[350013881,1737565848159,-657.244566,0.00020546,2]
[350013882,1737565848169,-500.0,0.00020546,2]
[350013883,1737565848178,-500.0,0.00020546,2]
[350013884,1737565848188,-907.71,0.00020546,2]
[350013885,1737565848197,-500.0,0.00020546,2]
[350013886,1737565848206,-460.310681,0.00020546,2]
[350013887,1737565848216,-1063.42,0.00020546,2]
[350013888,1737565848225,-941.71,0.00020546,2]
[350013889,1737565848235,-965.73,0.00020546,2]
[350013890,1737565848244,-1797.28,0.00020546,2]
[350013891,1737565848256,-643.03,0.00020546,2]
[350013892,1737565848266,-974.46,0.00020546,2]
[350013893,1737565848277,-724.33,0.00020546,2]
[350013894,1737565848287,-694.48,0.00020546,2]
[350013895,1737565848298,-673.61,0.00020546,2]
[350013896,1737565848308,-776.58,0.00020546,2]
[350013897,1737565848318,-672.49,0.00020546,2]
[350013898,1737565848328,-500.0,0.00020546,2]
[350013899,1737565848340,-501.16,0.00020546,2]
[350013900,1737565848350,-500.0,0.00020546,2]
[350013901,1737565848360,-500.0,0.00020546,2]
[350013902,1737565848369,-625.11,0.00020546,2]
[350013903,1737565848379,-1105.81,0.00020546,2]
[350013904,1737565848388,-1336.34,0.00020546,2]
[350013905,1737565848398,-726.5,0.00020546,2]
[350013906,1737565848408,-935.45,0.00020546,2]
[350013907,1737565848418,-966.49,0.00020546,2]
[350013908,1737565848427,-1581.88,0.00020546,2]
[350013909,1737565848437,-788.97,0.00020546,2]
[350013910,1737565848446,-1825.75,0.00020546,2]
[350013911,1737565848455,-636.92,0.00020546,2]
[350013912,1737565848464,-500.0,0.00020546,2]
[350013913,1737565848474,-681.56,0.00020546,2]
[350013914,1737565848483,-1012.12,0.00020546,2]
[350013915,1737565848493,-666.62,0.00020546,2]
[350013916,1737565848503,-847.19,0.00020546,2]
[350013917,1737565848513,-699.41,0.00020546,2]
[350013918,1737565848522,-626.69,0.00020546,2]
[350013919,1737565848533,-153.508936,0.00020546,2]
[350013920,1737565848544,-2254.05,0.00020546,2]
[350013921,1737565848554,-500.0,0.00020546,2]
[350013922,1737565848564,-1106.94,0.00020546,2]
[350013923,1737565848574,-1650.73,0.00020546,2]
[350013924,1737565848584,-500.0,0.00020546,2]
[350013925,1737565848593,-1074.08,0.00020546,2]
[350013926,1737565848603,-743.43,0.00020546,2]
[350013927,1737565848613,-500.0,0.00020546,2]
[350013928,1737565848622,-500.0,0.00020547,2]
[350013929,1737565848631,-500.0,0.00020547,2]
[350013930,1737565848641,-500.0,0.00020547,2]
[350013931,1737565848650,-500.0,0.00020547,2]
[350013932,1737565848660,-500.0,0.00020547,2]
[350013933,1737565848670,-500.0,0.00020547,2]
[350013934,1737565848679,-500.0,0.00020547,2]
[350013935,1737565848688,-500.0,0.00020547,2]
[350013936,1737565848698,-500.0,0.00020547,2]
[350013937,1737565848708,-500.0,0.00020547,2]
[350013938,1737565848717,-509.66,0.00020547,2]
[350013939,1737565848727,-500.0,0.00020547,2]
[350013940,1737565848736,-545.74,0.00020547,2]
[350013941,1737565848746,-500.0,0.00020547,2]
[350013942,1737565848756,-500.0,0.00020547,2]
[350013943,1737565848766,-500.0,0.00020547,2]
[350013944,1737565848776,-500.0,0.00020547,2]
[350013945,1737565848785,-500.0,0.00020547,2]
[350013946,1737565848797,-500.0,0.00020547,2]
[350013947,1737565848808,-649.07,0.00020547,2]
[350013948,1737565848818,-500.0,0.00020547,2]
[350013949,1737565848828,-525.43,0.00020547,2]
[350013950,1737565848838,-505.79,0.00020547,2]
[350013951,1737565848848,-500.0,0.00020547,2]
[350013952,1737565848857,-646.03,0.00020547,2]
[350013953,1737565848867,-500.0,0.00020547,2]
[350013954,1737565848877,-500.0,0.00020547,2]
[350013955,1737565848886,-470.70556826,0.00020547,2]
[350013956,1737565848896,-500.0,0.00020547,2]
[350013957,1737565848906,-501.78,0.00020547,2]
[350013958,1737565848915,-500.0,0.00020547,2]
[350013959,1737565848925,-500.0,0.00020547,2]
[350013960,1737565848934,-614.23,0.00020547,2]
[350013961,1737565848944,-623.51,0.00020547,2]
[350013962,1737565848953,-546.02,0.00020547,2]
[350013963,1737565848962,-500.0,0.00020547,2]
[350013964,1737565848972,-504.84,0.00020547,2]
[350013965,1737565848982,-555.95291863,0.00020547,2]
[350013966,1737565848991,-257.84065877,0.00020547,2]
[350013967,1737565849000,-664.44,0.00020547,2]
[350013968,1737565849010,-500.0,0.00020547,2]
[350013969,1737565849019,-500.0,0.00020547,2]
[350013970,1737565849028,-500.0,0.00020547,2]
[350013971,1737565849037,-500.0,0.00020547,2]
[350013972,1737565849048,-645.5,0.00020547,2]
[350013973,1737565849058,-500.0,0.00020547,2]
[350013974,1737565849068,-500.0,0.00020547,2]
[350013975,1737565849077,-500.0,0.00020547,2]
[350013976,1737565849087,-593.07,0.00020547,2]
[350013977,1737565849096,-500.0,0.00020547,2]
[350013978,1737565849106,-500.0,0.00020547,2]
[350013979,1737565849116,-1003.48,0.00020547,2]
[350013980,1737565849125,-617.32,0.00020547,2]
[350013981,1737565849134,-500.0,0.00020547,2]
[350013982,1737565849143,-500.0,0.00020547,2]
[350013983,1737565849152,-500.0,0.00020547,2]
[350013984,1737565849162,-540.86,0.00020547,2]
[350013985,1737565849172,-563.17,0.00020547,2]
[350013986,1737565849182,-1287.13,0.00020547,2]
[350013987,1737565849192,-573.95,0.00020547,2]
[350013988,1737565849202,-500.0,0.00020547,2]
[350013989,1737565849212,-500.0,0.00020547,2]
[350013990,1737565849222,-500.0,0.00020547,2]
[350013991,1737565849233,-670.74,0.00020547,2]
[350013992,1737565849243,-500.0,0.00020547,2]
[350013993,1737565849254,-864.36,0.00020547,2]
[350013994,1737565849265,-500.0,0.00020547,2]
[350013995,1737565849275,-869.3,0.00020547,2]
[350013996,1737565849284,-955.3,0.00020547,2]
[350013997,1737565849297,-970.84,0.00020547,2]
[350013998,1737565849308,-500.0,0.00020547,2]
[350013999,1737565849317,-1182.22,0.00020547,2]
[350014000,1737565849327,-500.0,0.00020547,2]
[350014001,1737565849338,-869.54,0.00020547,2]
[350014002,1737565849349,-500.0,0.00020547,2]
[350014003,1737565849359,-780.63,0.00020547,2]
[350014004,1737565849369,-653.23,0.00020547,2]
[350014005,1737565849380,-1803.15,0.00020547,2]
[350014006,1737565849390,-833.14,0.00020547,2]
[350014007,1737565849400,-573.29,0.00020547,2]
[350014008,1737565849410,-1171.15,0.00020547,2]
[350014009,1737565849420,-579.15,0.00020547,2]
[350014010,1737565849430,-3742.26,0.00020547,2]
[350014011,1737565849439,-690.65,0.00020547,2]
[350014012,1737565849449,-701.87,0.00020547,2]
[350014013,1737565849458,-1138.91,0.00020547,2]
[350014014,1737565849468,-690.29,0.00020547,2]
[350014015,1737565849478,-500.0,0.00020547,2]
[350014016,1737565849487,-605.71,0.00020547,2]
[350014017,1737565849497,-500.0,0.00020547,2]
[350014018,1737565849507,-1917.71,0.00020547,2]
[350014019,1737565849516,-668.31,0.00020547,2]
[350014020,1737565849525,-633.32,0.00020547,2]
[350014021,1737565849536,-752.83,0.00020547,2]
[350014022,1737565849547,-1417.61,0.00020547,2]
[350014023,1737565849556,-506.83232579,0.00020547,2]
[350014024,1737565849565,-538.97,0.00020547,2]
[350014025,1737565849575,-1068.08,0.00020547,2]
[350014026,1737565849585,-500.0,0.00020547,2]
[350014027,1737565849595,-500.0,0.00020547,2]
[350014028,1737565849604,-701.25,0.00020547,2]
[350014029,1737565849614,-500.0,0.00020547,2]
[350014030,1737565849624,-598.7,0.00020547,2]
[350014031,1737565849633,-839.47,0.00020547,2]
[350014032,1737565849643,-796.59,0.00020547,2]
[350014033,1737565849652,-704.85,0.00020547,2]
[350014034,1737565849662,-500.0,0.00020547,2]
[350014035,1737565849672,-297.26911961,0.00020547,2]
[350014036,1737565849682,-888.25,0.00020547,2]
[350014037,1737565849692,-500.0,0.00020547,2]
[350014038,1737565849701,-2198.06,0.00020547,2]
[350014039,1737565849710,-500.0,0.00020547,2]
[350014040,1737565849720,-500.0,0.00020547,2]
[350014041,1737565849729,-500.0,0.00020547,2]
[350014042,1737565849738,-911.33,0.00020547,2]
[350014043,1737565849748,-1000.0,0.00020547,2]
[350014044,1737565849757,-871.28,0.00020547,2]
[350014045,1737565849766,-621.29,0.00020547,2]
[350014046,1737565849776,-500.0,0.00020547,2]
[350014047,1737565849785,-500.0,0.00020547,2]
[350014048,1737565849795,-525.11,0.00020547,2]
[350014049,1737565849805,-500.0,0.00020547,2]
[350014050,1737565849814,-936.18,0.00020547,2]
[350014051,1737565849823,-1361.84,0.00020547,2]
[350014052,1737565849832,-1757.48,0.00020547,2]
[350014053,1737565849842,-500.0,0.00020547,2]
[350014054,1737565849851,-1059.37,0.00020547,2]
[350014055,1737565849860,-500.0,0.00020547,2]
[350014056,1737565849870,-788.3,0.00020547,2]
[350014057,1737565849879,-476.82205059,0.00020584,2]
[350014058,1737565849888,-451.90785432,0.0002059,2]
[350014059,1737565849898,-451.90785432,0.00020659,2]
[350014060,1737565849907,-162.46808223,0.00020721,2]
[350014061,1737565849917,-36178.1374,0.00020721,2]
[350014062,1737565849926,-451.90785432,0.00020728,2]
[350014063,1737565849935,-500.0,0.0002074,2]
[350014064,1737565849945,-202.99532453,0.0002074,2]
[350014065,1737565849954,-1617.50202486,0.00020783,2]
[350014066,1737565849964,-451.90785432,0.00020797,2]
[350014067,1737565849973,-639.03647948,0.00020806,2]
[350014068,1737565849983,-44377.03111064,0.0002081,2]
[350014069,1737565849992,-26867.33168215,0.0002081,2]
[350014070,1737565850010,-12674.517128,0.0002081,2]
[350014071,1737565850349,-4835.18230049,0.0002081,2]
[350014072,1737565850359,-5757.02775115,0.00020811,2]
[350014073,1737565850371,-1597.19399916,0.00020811,2]
[350014074,1737565850382,-8249.99982067,0.00020811,2]
[350014075,1737565850393,-623.34,0.00020811,2]
[350014076,1737565850405,-28149.46953966,0.00020811,2]
[350014077,1737565850414,-639.03647948,0.00020812,2]
[350014078,1737565850425,-5624.00269974,0.00020818,2]
[350014079,1737565850435,-2046.91,0.0002082,2]
[350014080,1737565850444,-656.98,0.0002082,2]
[350014081,1737565850453,-500.0,0.0002082,2]
[350014082,1737565850463,-657.244566,0.0002082,2]
[350014083,1737565850472,-500.0,0.0002082,2]
[350014084,1737565850482,-500.0,0.0002082,2]
[350014085,1737565850491,-907.71,0.0002082,2]
[350014086,1737565850501,-500.0,0.0002082,2]
[350014087,1737565850512,-460.310681,0.0002082,2]